bitfinex/quotes_SOLUSD_20240821
["timestamp","ask_amount","ask_price","bid_price","bid_amount"]
[1724226342461,13.11,143.15,143.14,0.8566729]
[1724226342677,58.11,143.15,143.14,0.8566729]
[1724226345368,45.0,143.15,143.14,0.8566729]
[1724226345963,21.6984,143.18,143.14,0.8566729]
[1724226346165,45.0,143.17,143.14,0.8566729]
[1724226347368,13.11,143.15,143.14,0.8566729]
[1724226347772,110.55,143.15,143.06,16.2293]
[1724226347973,13.11,143.09,143.07,0.25098]
[1724226348182,13.11,143.09,143.06,16.2293]
[1724226350855,13.11,143.11,143.06,16.2293]
[1724226351159,13.11,143.11,143.07,0.25098]
[1724226352157,13.11,143.11,143.07,0.12549]
[1724226352775,13.11,143.11,143.07,0.25098]
[1724226358268,16.164,143.14,143.03,20.0]
[1724226358269,13.11,143.09,143.03,20.0]
[1724226358582,13.11,143.09,143.04,20.0]
[1724226359596,13.11,143.09,143.05,0.25098]
[1724226360169,13.11,143.09,143.02,32.34039241]
[1724226360490,13.11,143.09,143.03,20.0]
[1724226361672,13.11,143.09,143.04,0.25098]
[1724226362092,16.164,143.14,143.04,0.25098]
[1724226362279,13.11,143.09,143.04,0.25098]
[1724226362891,13.11,143.09,143.03,0.25098]
[1724226365094,13.11,143.09,143.03,20.25098]
[1724226366886,13.11,143.09,143.03,0.25098]
[1724226368094,13.11,143.07,143.02,28.35011578]
[1724226368280,13.11,143.07,143.02,22.3878]
[1724226368674,13.11,143.07,143.02,6.2987]
[1724226369699,13.11,143.07,143.03,0.12549]
[1724226370300,13.11,143.07,143.0,0.8566729]
[1724226370496,13.11,143.07,143.0,20.8566729]
[1724226371706,13.11,143.07,143.01,0.25098]
[1724226372280,13.11,143.05,143.0,0.8566729]
[1724226373200,52.44,143.08,143.0,0.8566729]
[1724226373399,13.11,143.03,143.0,0.8566729]
[1724226376602,16.4656,143.07,143.0,0.8566729]
[1724226377407,16.4656,143.07,143.01,0.12549]
[1724226377628,13.11,143.05,143.01,0.12549]
[1724226377898,13.11,143.02,143.0,0.8566729]
[1724226393299,12.41,143.02,143.0,0.8566729]
[1724226404635,45.0,143.01,143.0,0.8566729]
[1724226406216,97.44,143.01,143.0,0.8566729]
[1724226407013,45.0,143.01,143.0,0.8566729]
[1724226407233,45.0,143.02,143.0,0.8566729]
[1724226409828,13.11,143.01,143.0,0.8566729]
[1724226410018,58.11,143.01,143.0,0.8566729]
[1724226413030,71.22,143.01,143.0,0.8566729]
[1724226413231,13.11,142.96,142.93,6.1812]
[1724226417519,13.11,142.98,142.93,6.1812]
[1724226418143,97.44,143.01,142.92,0.12549]
[1724226418144,13.11,142.96,142.92,0.12549]
[1724226420751,13.11,142.96,142.91,16.4269]
[1724226421129,13.11,142.96,142.91,15.4269]
[1724226421950,97.44,143.01,142.91,15.4269]
[1724226422268,14.9718,142.91,142.73,20.0]
[1724226422424,78.98006808,143.0,142.81,20.0]
[1724226422623,0.25098,142.99,142.81,20.0]
[1724226422836,38.75685149,142.99,142.81,20.0]
[1724226423045,38.75685149,142.99,142.74,13.47433151]
[1724226423046,13.11,142.89,142.77,20.0]
[1724226423229,41.0,142.98,142.75,25.90098938]
[1724226423230,13.11,142.85,142.75,25.90098938]
[1724226423433,21.0,142.93,142.76,13.11]
[1724226423645,0.25098,142.92,142.78,13.11]
[1724226423855,20.25098,142.92,142.78,13.11]
[1724226424027,20.25098,142.92,142.79,20.0]
[1724226424342,13.11,142.89,142.79,20.0]
[1724226424725,45.0,142.91,142.8,13.11]
[1724226424926,13.11,142.91,142.81,20.0]
[1724226425127,20.0,142.92,142.78,35.1072]
[1724226425329,52.44,142.94,142.78,48.2172]
[1724226425330,13.11,142.89,142.78,48.2172]
[1724226425657,13.11,142.89,142.8,20.0]
[1724226425824,13.11,142.89,142.8,33.11]
[1724226426239,13.11,142.89,142.81,20.0]
[1724226426621,13.11,142.89,142.82,0.25098]
[1724226427053,13.11,142.9,142.82,0.25098]
[1724226427559,13.11,142.9,142.82,20.25098]
[1724226427853,20.104,143.01,142.84,20.0]
[1724226427854,28.29426797,142.99,142.84,20.0]
[1724226428163,10.21160352,142.98,142.85,0.25098]
[1724226428361,13.11,142.93,142.85,0.25098]
[1724226428528,13.11,142.93,142.85,45.25098]
[1724226429261,13.11,142.94,142.86,20.0]
[1724226429458,13.11,142.94,142.87,0.25098]
[1724226430446,13.11,142.93,142.86,0.25098]
[1724226431048,13.11,142.93,142.86,20.25098]
[1724226432350,13.11,142.95,142.86,20.25098]
[1724226435570,7.29313764,143.01,142.88,20.0]
[1724226435753,7.29313764,143.01,142.89,0.25098]
[1724226436656,13.11,142.96,142.89,0.25098]
[1724226438255,13.11,142.96,142.89,21.65023531]
[1724226438562,13.11,142.96,142.89,20.25098]
[1724226439064,52.44,143.01,142.89,20.25098]
[1724226439962,13.11,142.96,142.89,20.25098]
[1724226440567,13.11,142.96,142.9,21.39925295]
[1724226440746,13.11,142.96,142.91,0.25098]
[1724226440953,7.81462163,143.07,142.93,6.5645]
[1724226441160,15.035,143.08,142.93,6.5645]
[1724226441161,13.11,143.02,142.95,15.117]
[1724226441386,13.11,143.02,142.96,0.25098]
[1724226442684,13.11,143.02,142.96,1.6496904]
[1724226443573,13.11,143.02,142.96,0.25098]
[1724226447080,13.11,143.02,142.96,65.25098]
[1724226448674,13.11,143.02,142.97,20.0]
[1724226448976,13.11,143.02,142.98,0.25098]
[1724226449857,258.4,143.09,142.99,20.0]
[1724226450057,13.11,143.07,143.01,6.6464]
[1724226450365,265.394,143.15,143.03,16.1806]
[1724226450558,13.11,143.09,143.03,16.1806]
[1724226450784,13.11,143.09,143.04,0.12549]
[1724226451097,13.11,143.07,143.01,6.6464]
[1724226451394,13.11,143.03,143.01,6.6464]
[1724226451752,13.11,143.03,142.99,15.4788]
[1724226451985,13.11,143.07,142.99,15.4788]
[1724226452164,13.11,143.03,142.99,15.4788]
[1724226453061,13.11,143.05,143.0,0.12549]
[1724226453259,13.11,143.05,143.0,0.25098]
[1724226455563,13.11,143.05,143.0,1.64932767]
[1724226456685,389.9,143.12,142.99,15.4788]
[1724226456686,13.11,143.01,142.99,15.4788]
[1724226456988,10.21160352,143.1,142.99,15.4788]
[1724226457188,13.11,143.01,142.99,15.4788]
[1724226459877,52.44,143.08,142.99,15.4788]
[1724226460085,13.11,143.03,143.0,0.25098]
[1724226460571,13.11,143.03,143.0,0.12549]
[1724226464200,13.11,143.03,143.0,0.25098]
[1724226465502,13.11,143.01,142.98,6.6317]
[1724226465700,13.11,143.01,142.99,0.12549]
[1724226466691,21.9713,143.1,142.99,0.12549]
[1724226466895,52.44,143.08,142.99,1.64949048]
[1724226467193,52.44,143.08,142.99,0.25098]
[1724226468991,13.11,143.02,142.99,0.25098]
[1724226470293,13.11,143.02,142.98,6.6317]
[1724226470697,52.44,143.08,142.98,6.6317]
[1724226470908,13.11,143.02,142.98,6.6317]
[1724226474490,52.44,143.08,142.98,6.6317]
[1724226474692,13.11,143.02,142.99,0.25098]
[1724226477612,13.11,143.02,142.96,15.4373]
[1724226477613,13.11,143.0,142.96,15.4373]
[1724226477788,52.44,143.08,142.96,15.4373]
[1724226477789,13.11,142.98,142.96,15.4373]
[1724226478207,13.11,142.98,142.94,6.553]
[1724226478406,38.50557196,143.08,142.94,6.553]
[1724226478606,75.46258352,143.07,142.94,6.553]
[1724226478812,13.11,142.96,142.94,6.553]
[1724226480701,13.11,142.96,142.92,16.5038]
[1724226482413,13.11,142.96,142.93,0.12549]
[1724226482608,13.11,142.96,142.93,0.25098]
[1724226483533,96.46258352,143.07,142.93,0.25098]
[1724226483534,31.74020352,143.07,142.93,20.25098]
[1724226483828,31.74020352,143.07,142.94,45.0]
[1724226484110,31.74020352,143.07,142.95,0.25098]
[1724226484111,13.11,142.99,142.95,0.25098]
[1724226485813,13.11,142.99,142.96,6.4108]
[1724226486028,13.11,142.99,142.97,0.12549]
[1724226486199,13.11,142.99,142.97,0.25098]
[1724226486595,38.83260293,143.07,142.97,0.25098]
[1724226486809,13.11,143.01,142.98,15.2187]
[1724226487706,17.30400293,143.07,142.98,15.2187]
[1724226487911,17.30400293,143.07,142.99,0.25098]
[1724226487912,13.11,143.01,142.99,0.25098]
[1724226491410,13.11,143.02,142.99,0.25098]
[1724226491626,13.11,143.09,143.03,16.1672]
[1724226491800,13.11,143.09,143.04,0.25098]
[1724226492201,13.11,143.07,143.04,0.25098]
[1724226492408,13.11,143.05,142.98,22.7155]
[1724226492612,13.11,143.01,142.99,0.12549]
[1724226493824,13.11,143.01,142.99,0.25098]
[1724226494515,13.11,143.03,142.99,0.25098]
[1724226496421,52.44,143.08,142.99,1.64932902]
[1724226496622,13.11,143.05,142.99,45.25098]
[1724226496824,13.11,143.05,143.0,20.0]
[1724226497003,13.11,143.05,143.01,0.25098]
[1724226498022,13.11,143.05,143.01,45.25098]
[1724226498822,13.11,143.07,143.02,21.39806813]
[1724226499041,13.11,143.07,143.03,0.25098]
[1724226499636,13.11,143.07,143.04,16.5631]
[1724226499810,13.11,143.07,143.05,0.25098]
[1724226503037,13.11,143.07,143.05,0.12549]
[1724226503218,13.11,143.07,143.04,16.5631]
[1724226503419,13.11,143.05,143.04,16.5631]
[1724226503737,13.11,143.05,143.04,16.81408]
[1724226504533,82.1457233,143.15,143.04,43.05028]
[1724226504742,74.8548,143.15,143.05,45.25098]
[1724226505032,13.11,143.1,143.05,45.25098]
[1724226507140,13.11,143.08,143.05,0.25098]
[1724226513211,22.4148,143.15,143.05,1.6487721]
[1724226513412,13.11,143.1,143.05,46.6487721]
[1724226516225,258.4,143.17,143.06,20.0]
[1724226516422,258.4,143.17,143.07,1.64855723]
[1724226516423,13.11,143.12,143.07,1.64855723]
[1724226516633,13.11,143.12,143.08,1.3975773]
[1724226516955,13.11,143.12,143.09,0.12549]
[1724226517426,13.11,143.1,143.09,0.12549]
[1724226518026,13.11,143.1,143.07,0.12549]
[1724226518226,13.11,143.1,143.08,0.12549]
[1724226518433,13.11,143.1,143.07,0.25098]
[1724226518736,13.11,143.1,143.05,45.0]
[1724226518737,65.55,143.08,143.04,22.7993]
[1724226518941,13.11,143.05,143.04,16.5631]
[1724226521529,13.11,143.05,143.04,16.68859]
[1724226523919,13.11,143.07,143.04,16.68859]
[1724226524124,22.6176,143.13,143.05,1.64889002]
[1724226524451,13.11,143.08,143.05,1.64889002]
[1724226524653,13.11,143.08,143.05,0.25098]
[1724226528518,13.11,143.06,143.05,0.25098]
[1724226534347,13.11,143.07,143.05,0.25098]
[1724226538059,16.4409,143.13,143.05,0.25098]
[1724226538060,13.11,143.09,143.05,0.25098]
[1724226538630,13.11,143.09,143.05,46.64869507]
[1724226538838,13.11,143.1,143.06,1.39771741]
[1724226539054,13.11,143.1,143.07,0.25098]
[1724226539543,13.11,143.1,143.07,0.12549]
[1724226539858,13.11,143.1,143.08,0.12549]
[1724226540160,13.11,143.1,143.06,0.25098]
[1724226546842,52.44,143.15,143.06,20.25098]
[1724226547164,22.2575,143.16,143.06,20.25098]
[1724226547165,29.08723864,143.2,143.08,20.0]
[1724226547375,41.70263248,143.18,143.09,0.25098]
[1724226547665,41.70263248,143.18,143.09,45.25098]
[1724226547862,41.70263248,143.18,143.09,0.25098]
[1724226548068,13.11,143.1,143.08,20.25098]
[1724226548266,13.11,143.1,143.08,0.25098]
[1724226550767,52.44,143.15,143.08,0.25098]
[1724226551668,13.11,143.11,143.08,0.25098]
[1724226552758,13.11,143.11,143.08,45.25098]
[1724226553656,29.08723864,143.2,143.08,65.25098]
[1724226553976,45.0,143.19,143.09,1.39736638]
[1724226554160,41.7034952,143.19,143.1,0.25098]
[1724226554358,29.08723864,143.2,143.1,0.25098]
[1724226554359,70.79073384,143.2,143.1,0.25098]
[1724226554783,13.11,143.12,143.1,0.25098]
[1724226556575,13.11,143.13,143.1,16.17978]
[1724226556784,13.11,143.13,143.11,1.39732701]
[1724226556955,13.11,143.13,143.12,0.12549]
[1724226557586,41.70349677,143.19,143.12,0.12549]
[1724226557878,70.79073541,143.2,143.12,0.12549]
[1724226558760,70.79073541,143.2,143.12,1.39727199]
[1724226558986,70.79073541,143.2,143.13,0.12549]
[1724226559162,64.48579677,143.2,143.13,0.12549]
[1724226560889,22.7823,143.2,143.13,0.12549]
[1724226561177,64.48302176,143.2,143.13,0.12549]
[1724226561991,13.11,143.14,143.13,0.12549]
[1724226562192,13.11,143.14,143.1,36.05429]
[1724226562358,13.11,143.14,143.11,0.12549]
[1724226563487,13.11,143.12,143.11,0.12549]
[1724226565480,13.11,143.12,143.11,1.52278251]
[1724226565783,13.11,143.12,143.11,1.64827251]
[1724226565983,64.48302176,143.2,143.11,1.64827251]
[1724226566183,64.48302176,143.2,143.12,0.12549]
[1724226566389,13.11,143.14,143.12,0.12549]
[1724226566890,13.11,143.14,143.11,0.25098]
[1724226567479,64.48355763,143.2,143.11,0.25098]
[1724226567667,64.48355763,143.2,143.11,45.25098]
[1724226567865,22.7823,143.2,143.11,45.25098]
[1724226568290,64.4835321,143.2,143.11,0.25098]
[1724226568591,22.7823,143.2,143.11,0.25098]
[1724226569300,13.11,143.12,143.11,0.25098]
[1724226573681,22.7823,143.2,143.11,0.25098]
[1724226574796,13.11,143.12,143.11,0.25098]
[1724226575784,13.11,143.14,143.11,0.25098]
[1724226576893,22.7823,143.2,143.11,0.25098]
[1724226577094,64.48355768,143.2,143.11,1.64814017]
[1724226577299,16.501,143.2,143.11,46.64814017]
[1724226578603,41.70082151,143.21,143.12,26.6587]
[1724226578800,0.8566729,143.22,143.13,1.64798082]
[1724226579002,0.8566729,143.22,143.13,46.64798082]
[1724226579177,13.11,143.17,143.13,46.64798082]
[1724226580377,13.11,143.17,143.13,45.25098]
[1724226581706,53.2966729,143.22,143.13,45.25098]
[1724226581908,13.11,143.17,143.13,45.25098]
[1724226584282,13.11,143.15,143.12,26.6587]
[1724226584478,13.11,143.15,143.12,6.6587]
[1724226584707,13.11,143.15,143.12,26.6587]
[1724226585713,13.11,143.15,143.13,45.25098]
[1724226586213,13.11,143.15,143.13,0.25098]
[1724226588298,13.11,143.15,143.13,45.25098]
[1724226589699,53.2966729,143.22,143.13,45.25098]
[1724226589903,13.11,143.16,143.13,45.25098]
[1724226590591,13.11,143.16,143.13,0.25098]
[1724226590918,13.11,143.14,143.13,0.12549]
[1724226591124,13.11,143.14,143.1,35.9288]
[1724226591308,48.02125837,143.21,143.1,35.9288]
[1724226592006,6.3216,143.21,143.1,35.9288]
[1724226592184,48.02258646,143.21,143.1,35.9288]
[1724226592388,48.02258646,143.21,143.11,0.25098]
[1724226592724,13.11,143.12,143.11,0.25098]
[1724226593014,13.11,143.12,143.11,20.25098]
[1724226593698,13.11,143.14,143.11,65.25098]
[1724226597214,13.11,143.14,143.11,20.25098]
[1724226598009,13.11,143.12,143.11,20.25098]
[1724226598307,13.11,143.12,143.11,20.0]
[1724226598910,13.11,143.12,143.1,15.9288]
[1724226599217,13.11,143.12,143.06,15.1113]
[1724226599401,13.11,143.1,143.06,15.1113]
[1724226599925,52.44,143.15,143.06,15.1113]
[1724226600407,13.11,143.07,143.06,15.1113]
[1724226600617,13.11,143.07,143.05,0.035]
[1724226602607,13.11,143.07,142.99,36.2966]
[1724226602915,13.11,143.01,142.99,16.2966]
[1724226603318,13.11,143.01,142.99,36.2966]
[1724226603622,13.11,143.01,142.99,16.2966]
[1724226604131,13.11,143.01,142.99,36.2966]
[1724226604310,13.11,143.01,143.0,20.0]
[1724226605009,13.11,143.01,143.0,65.25098]
[1724226607810,6.4987,143.12,143.0,65.25098]
[1724226608013,13.11,143.04,143.01,45.25098]
[1724226608226,6.4987,143.12,143.01,45.25098]
[1724226608433,13.11,143.04,143.01,45.25098]
[1724226608642,13.11,143.04,143.02,1.39815714]
[1724226608848,13.11,143.04,143.03,0.25098]
[1724226610222,13.11,143.04,143.03,20.0]
[1724226610416,13.11,143.04,143.03,65.25098]
[1724226610929,13.11,143.04,143.03,20.25098]
[1724226611333,13.11,143.04,143.03,85.25098]
[1724226612029,13.11,143.06,143.03,85.25098]
[1724226612244,13.11,143.06,143.04,0.25098]
[1724226612417,6.4987,143.12,143.04,45.25098]
[1724226612618,13.11,143.07,143.04,45.25098]
[1724226613625,13.11,143.07,143.05,1.39782912]
[1724226613940,13.11,143.09,143.06,0.25098]
[1724226614325,13.11,143.09,143.06,45.25098]
[1724226616041,13.11,143.09,143.06,0.25098]
[1724226617221,13.11,143.07,143.05,20.0]
[1724226617421,13.11,143.07,143.02,15.6095]
[1724226617640,13.11,143.04,143.02,15.6095]
[1724226618738,13.11,143.04,143.03,20.0]
[1724226619134,13.11,143.04,143.03,20.25098]
[1724226619338,13.11,143.06,143.03,20.25098]
[1724226619541,13.11,143.06,143.04,0.25098]
[1724226619841,13.11,143.06,143.04,1.64895774]
[1724226620029,13.11,143.06,143.04,0.25098]
[1724226620443,13.11,143.06,143.04,1.64893313]
[1724226620638,13.11,143.06,143.04,1.64893992]
[1724226620945,13.11,143.06,143.04,45.25098]
[1724226621335,13.11,143.08,143.05,1.39793416]
[1724226621531,13.11,143.08,143.06,0.12549]
[1724226622031,13.11,143.08,143.06,0.25098]
[1724226623345,13.11,143.08,143.06,1.64882198]
[1724226623524,13.11,143.08,143.06,0.25098]
[1724226623725,13.11,143.1,143.06,20.25098]
[1724226623933,13.11,143.11,143.07,1.39760387]
[1724226624130,13.11,143.11,143.08,0.25098]
[1724226624428,13.11,143.11,143.08,1.64856522]
[1724226625254,13.11,143.11,143.09,1.39748841]
[1724226625430,13.11,143.11,143.1,0.25098]
[1724226626046,13.11,143.13,143.09,45.25098]
[1724226626246,13.11,143.13,143.1,1.52282745]
[1724226626454,15.595,143.17,143.11,0.25098]
[1724226626751,13.11,143.13,143.11,1.64827925]
[1724226627254,13.11,143.13,143.11,0.25098]
[1724226627456,13.11,143.13,143.11,1.64828779]
[1724226628464,13.11,143.13,143.11,0.25098]
[1724226628937,13.11,143.13,143.1,20.0]
[1724226628938,13.11,143.13,143.08,15.1731]
[1724226629152,13.11,143.11,143.08,15.1731]
[1724226629350,13.11,143.09,143.05,20.0]
[1724226629656,13.11,143.09,143.05,40.0]
[1724226629835,13.11,143.09,143.06,20.0]
[1724226630645,13.11,143.09,143.07,0.25098]
[1724226632470,13.11,143.09,143.04,16.3182]
[1724226632657,13.11,143.05,143.01,20.0]
[1724226632959,13.11,143.03,143.01,20.0]
[1724226633363,13.11,143.03,143.0,21.5836]
[1724226634567,32.9,143.05,143.0,21.5836]
[1724226634740,32.9,143.05,143.01,65.25098]
[1724226638040,6.0776,143.1,143.01,85.25098]
[1724226638245,6.0776,143.1,143.02,1.398067]
[1724226638556,32.9,143.07,143.03,0.25098]
[1724226639149,32.9,143.07,143.04,0.25098]
[1724226639348,32.9,143.07,143.02,0.25098]
[1724226639944,32.9,143.05,143.02,0.25098]
[1724226642075,32.9,143.07,143.02,0.25098]
[1724226646149,6.0776,143.1,143.02,0.25098]
[1724226647056,6.0776,143.1,143.01,20.0]
[1724226647259,32.9,143.02,142.97,35.1812]
[1724226648746,32.9,143.02,142.97,15.1812]
[1724226649588,32.9,143.02,142.98,20.0]
[1724226650065,32.9,143.02,142.99,0.12549]
[1724226650869,15.3571,143.06,142.99,0.12549]
[1724226650870,32.9,143.0,142.99,0.12549]
[1724226651071,32.9,143.0,142.98,0.25098]
[1724226651460,32.9,143.0,142.95,20.0]
[1724226651686,32.9,143.0,142.96,20.0]
[1724226652665,32.9,143.0,142.97,0.25098]
[1724226654675,13.17,142.99,142.97,0.25098]
[1724226658973,13.17,142.99,142.94,20.0]
[1724226659277,52.68,143.01,142.95,0.25098]
[1724226659471,52.68,143.01,142.93,42.4739]
[1724226660573,52.68,143.01,142.94,0.12549]
[1724226660780,13.17,142.96,142.94,0.25098]
[1724226661072,13.17,142.96,142.94,20.25098]
[1724226662861,13.17,142.98,142.94,20.25098]
[1724226663174,6.1776,143.05,142.95,1.39887564]
[1724226663375,6.1776,143.05,142.96,20.25098]
[1724226663689,6.1776,143.05,142.97,45.25098]
[1724226664774,13.17,143.01,142.98,1.39854141]
[1724226664971,13.17,143.01,142.99,0.25098]
[1724226665185,6.3087,143.09,142.99,0.25098]
[1724226665186,6.3087,143.09,142.99,36.69448]
[1724226665572,6.3087,143.09,143.0,20.0]
[1724226665776,6.3087,143.09,143.01,0.25098]
[1724226666380,13.17,143.04,143.01,0.25098]
[1724226666590,15.7908,143.1,143.01,20.25098]
[1724226666763,15.7908,143.1,143.02,45.0]
[1724226666967,15.7908,143.1,143.03,0.25098]
[1724226668068,13.17,143.05,143.03,0.25098]
[1724226671181,15.7908,143.1,143.03,0.25098]
[1724226671383,15.7908,143.1,143.03,1.64900167]
[1724226672195,15.7908,143.1,143.03,0.25098]
[1724226672702,13.17,143.07,143.03,41.64892714]
[1724226672892,13.17,143.07,143.04,45.0]
[1724226673086,13.17,143.07,143.05,1.6488683]
[1724226676390,13.17,143.07,143.05,0.25098]
[1724226679496,13.17,143.07,143.04,15.3856]
[1724226679684,13.17,143.05,143.03,20.0]
[1724226680308,13.17,143.05,143.0,16.0037]
[1724226680491,13.17,143.01,143.0,16.0037]
[1724226680813,13.17,143.01,142.96,16.4498]
[1724226681012,21.4589,143.07,142.96,16.4498]
[1724226681909,21.4589,143.07,142.97,20.0]
[1724226682106,13.17,142.99,142.97,20.0]
[1724226682611,13.17,142.99,142.98,0.25098]
[1724226691243,13.17,143.01,142.98,0.25098]
[1724226691524,13.17,143.01,142.98,45.25098]
[1724226693806,13.17,143.03,142.99,1.39845716]
[1724226694003,13.17,143.03,143.0,0.25098]
[1724226696043,13.17,143.01,143.0,0.25098]
[1724226696215,13.17,143.01,142.99,0.25098]
[1724226696414,13.17,143.01,142.98,0.25098]
[1724226697554,13.17,143.01,142.98,1.64946234]
[1724226699824,13.17,143.02,142.98,1.64946234]
[1724226700052,13.17,143.02,142.98,46.64946234]
[1724226702749,13.17,143.02,142.98,45.25098]
[1724226704271,21.4589,143.07,142.98,45.25098]
[1724226704640,21.4589,143.07,142.98,0.25098]
[1724226705461,13.17,143.0,142.98,0.25098]
[1724226706966,13.17,143.0,142.98,1.64957282]
[1724226707575,13.17,143.0,142.98,0.25098]
[1724226709466,21.4589,143.07,142.98,1.64949861]
[1724226709842,21.4589,143.07,142.99,20.0]
[1724226710049,21.4589,143.07,143.0,0.25098]
[1724226710248,13.17,143.03,143.0,1.64926654]
[1724226711054,13.17,143.03,143.0,1.64927886]
[1724226711259,52.68,143.08,143.0,1.64927886]
[1724226711260,13.17,143.05,143.0,66.64927886]
[1724226711780,13.17,143.05,143.0,65.25098]
[1724226712275,13.17,143.03,143.0,65.25098]
[1724226713577,13.17,143.03,143.0,20.25098]
[1724226715153,13.17,143.03,143.0,0.25098]
[1724226715345,13.17,143.03,142.99,45.25098]
[1724226715553,13.17,143.03,143.0,20.0]
[1724226715762,13.17,143.03,143.01,0.25098]
[1724226719172,13.17,143.03,143.01,0.12549]
[1724226722779,21.9705,143.11,143.0,65.25098]
[1724226722968,21.9705,143.11,143.01,1.39821159]
[1724226723171,21.9705,143.11,143.02,0.25098]
[1724226723773,21.9705,143.11,143.02,1.64919114]
[1724226724565,21.9705,143.11,143.02,0.25098]
[1724226724886,15.899,143.11,143.02,66.64904436]
[1724226725081,63.392365,143.15,143.03,20.0]
[1724226725288,21.6703,143.15,143.04,65.25098]
[1724226726276,13.17,143.1,143.06,15.3366]
[1724226726481,13.17,143.12,143.07,86.52315703]
[1724226726797,13.17,143.12,143.08,1.52302395]
[1724226726991,13.17,143.12,143.09,0.12549]
[1724226727163,258.4,143.18,143.09,0.12549]
[1724226727364,13.17,143.11,143.09,0.12549]
[1724226727565,13.17,143.11,143.08,0.25098]
[1724226727767,22.1197,143.19,143.08,1.64851638]
[1724226728271,22.1197,143.19,143.09,20.0]
[1724226728471,13.17,143.13,143.1,21.64828445]
[1724226728797,13.17,143.13,143.11,1.39732729]
[1724226729093,13.17,143.13,143.12,0.25098]
[1724226729294,13.17,143.13,143.1,20.25098]
[1724226732073,13.17,143.13,143.1,0.25098]
[1724226732275,13.17,143.13,143.09,45.25098]
[1724226732477,13.17,143.11,143.1,20.0]
[1724226732813,13.17,143.11,143.08,20.0]
[1724226733695,13.17,143.12,143.1,20.0]
[1724226734006,13.17,143.12,143.11,45.25098]
[1724226734892,13.17,143.14,143.11,45.25098]
[1724226735809,16.0767,143.19,143.11,0.25098]
[1724226736786,13.17,143.12,143.11,0.25098]
[1724226738678,13.17,143.12,143.11,0.12549]
[1724226738886,13.17,143.12,143.06,21.4023]
[1724226739083,52.68,143.15,143.06,21.4023]
[1724226739084,13.17,143.09,143.06,21.4023]
[1724226741000,13.17,143.09,143.07,20.0]
[1724226745722,13.17,143.09,143.07,1.39776695]
[1724226745919,13.17,143.11,143.08,0.25098]
[1724226750634,13.17,143.09,143.08,0.25098]
[1724226750804,13.17,143.09,143.07,0.25098]
[1724226751928,52.68,143.15,143.07,0.25098]
[1724226751929,13.17,143.11,143.07,0.25098]
[1724226752229,13.17,143.11,143.07,46.64865415]
[1724226759464,13.17,143.09,143.07,0.25098]
[1724226761148,13.17,143.09,143.07,1.64874498]
[1724226762456,13.17,143.09,143.07,0.25098]